Cogmind - Beta 16 @@@ ROGUE MODE // 2025.11.13 @ 17:13:08 Player: UnsuspectingSawblade Result: Self-destructed Performance ------------- Evolutions (2) 1000 Regions Visited (7) 1400 Robots Destroyed (57) 285 Value Destroyed (1555) 1555 Prototype IDs (30) 600 Alien Tech Used (0) 0 Bonus (300) 300 TOTAL SCORE: 5140 Bonus ------- Aligned with FarCom 300 Cogmind --------- Core Integrity 550/550 Matter 236/300 Energy 3/100 System Corruption 0% Temperature Cool (0) Movement Walking (190) Ox1 Location -8/Materials Parts ------- > --- POWER (1) -------- (None) > --- PROPULSION (4) --- Aluminum Leg Aluminum Leg Aluminum Leg Aluminum Leg > --- UTILITY (4) ------ Improved Heat Sink Large Storage Unit Improved Weapon Shielding Shield Generator > --- WEAPON (2) ------- YOLO Cannon > --- INVENTORY (15) --- Ion Engine Light Ion Engine Aluminum Leg Large Storage Unit Structural Scanner Improved Terrain Scanner Seismic Detector Improved Weapon Shielding Improved Light Armor Plating Heavy Laser Heavy Laser Improved Assault Rifle Improved Assault Rifle Rocket Launcher Mining Laser Peak State ------------ > --- POWER ------------ Light Nuclear Core > --- PROPULSION ------- Aluminum Leg Aluminum Leg Aluminum Leg Aluminum Leg > --- UTILITY ---------- Improved Heat Sink Large Storage Unit Armor Integrity Analyzer Reaction Control System > --- WEAPON ----------- YOLO Cannon > --- INVENTORY -------- Ion Engine Light Ion Engine Light Treads Aluminum Leg Large Storage Unit Structural Scanner Improved Terrain Scanner Improved Terrain Scanner Seismic Detector Heavy Laser Heavy Laser Improved Assault Rifle Improved Assault Rifle Rocket Launcher Mining Laser [Rating: 41] Favorites ----------- Power Ion Engine Engine Ion Engine Power Core Light Nuclear Core Propulsion Aluminum Leg Treads Light Treads Leg Aluminum Leg Utility Large Storage Unit Device Seismic Detector Storage Large Storage Unit Processor Armor Integrity Analyzer Hackware Hacking Suite Protection Improved Weapon Shielding Weapon Grenade Launcher Energy Gun Heavy Laser Energy Cannon YOLO Cannon Ballistic Gun Improved Assault Rifle Launcher Grenade Launcher Special Weapon Mining Laser Build | -11 -10 -10 -9 -9 -9 -8 -8 ------- Run | Yrd Mat Min Mat Min Exi Min Mat Slots Evolved 4 | . . . 2 . . . 2 Power . | . . . . . . . . Propulsion 2 | . . . 2 . . . . Utility 2 | . . . . . . . 2 Weapon . | . . . . . . . . Parts Attached 37 | 7 9 2 1 . . 3 15 Power 3 | 1 1 . . . . . 1 Engine 2 | 1 1 . . . . . . Core 1 | . . . . . . . 1 Reactor . | . . . . . . . . Propulsion 11 | 2 2 . . . . 2 5 Treads 2 | . 2 . . . . . . Leg 9 | 2 . . . . . 2 5 Wheel . | . . . . . . . . Hover . | . . . . . . . . Flight . | . . . . . . . . Utility 12 | 2 2 1 . . . 1 6 Device 6 | 1 1 1 . . . . 3 Storage 3 | 1 1 . . . . 1 . Processor 1 | . . . . . . . 1 Hackware 1 | . . . . . . . 1 Protection 1 | . . . . . . . 1 Artifact . | . . . . . . . . Weapon 11 | 2 4 1 1 . . . 3 Energy Gun 2 | . . . . . . . 2 Energy Cannon 1 | . . . . . . . 1 Ballistic Gun 4 | 2 1 . 1 . . . . Ballistic Cannon . | . . . . . . . . Launcher 3 | . 2 1 . . . . . Special Weapon 1 | . 1 . . . . . . Impact Weapon . | . . . . . . . . Slashing Weapon . | . . . . . . . . Piercing Weapon . | . . . . . . . . Special Melee Weapon . | . . . . . . . . Unidentified Prototypes 1 | . . . 1 . . . . Parts Lost 4 | . . . . . . 1 3 Power 1 | . . . . . . . 1 Propulsion 2 | . . . . . . 1 1 Utility 1 | . . . . . . . 1 Weapon . | . . . . . . . . Highest Loss Streak 1 | . . . . . . 1 1 To Critical Strikes . | . . . . . . . . Average Backups 12 | 4 9 13 12 15 14 14 14 Power 1 | . 1 1 1 2 2 2 2 Propulsion 1 | 1 2 3 1 1 1 1 1 Utility 4 | . 3 5 5 5 5 5 5 Weapon 5 | 1 3 4 5 7 6 5 5 Tool/Special . | . . . . . . . . Unused Backups 9 | . . . . . . . 9 Power 2 | . . . . . . . 2 Propulsion 1 | . . . . . . . 1 Utility 4 | . . . . . . . 4 Weapon 2 | . . . . . . . 2 Tool/Special . | . . . . . . . . Average Slot Usage (%) 98 | . 100 100 98 100 100 99 91 Engine 10 | . 14 14 11 11 11 11 3 Core 1 | . . . . . . . 5 Treads 17 | . 22 28 22 22 22 15 . Leg 20 | . 5 . 20 22 22 28 35 Device 12 | . 14 14 11 11 11 11 15 Storage 11 | . 14 14 11 11 11 11 9 Energy Gun 1 | . . . . . . . 5 Energy Cannon 1 | . . . . . . . 5 Ballistic Gun 11 | . 20 15 11 11 11 11 . Launcher 8 | . 6 12 11 11 11 11 . Peak Build Rating 41 | 7 8 9 13 13 15 15 41 Average Rating 15 | 5 7 8 10 13 14 14 33 On Entrance 9 | . 7 8 8 13 13 15 15 Avg Prop Armor Cover (%) 10 | . . . 10 10 10 10 . Naked Turns . | . . . . . . . . Heaviest Build 48 | 11 31 32 32 32 32 32 48 Greatest Support 40 | 20 40 40 40 40 40 40 40 Greatest Overweight (x) 1 | . . . . . . 1 1 Average Overweight (x) . | . . . . . . . . Largest Inventory Capacity 15 | 8 15 15 15 15 15 15 15 Average Capacity 14 | 7 13 15 15 15 15 15 15 Most Carried 15 | 7 13 14 15 15 15 15 15 Average Carried 13 | 4 9 13 12 15 14 15 14 Final Capacity 15 | 8 15 15 15 15 15 15 15 Final Carried 15 | 6 13 14 15 15 15 15 15 Class Distribution -------------------- 87% | Mutant 12% | Scavenger-Mutant Dominant Class ---------------- Mutant | -10/Materials Mutant | -10/Mines Mutant | -9/Materials Mutant | -9/Mines Mutant | -9/Exiles Mutant | -8/Mines Scavenger-Mutant | -8/Materials Resources | -11 -10 -10 -9 -9 -9 -8 -8 ----------- Run | Yrd Mat Min Mat Min Exi Min Mat Matter Collected 1180 | 304 184 96 18 106 . 166 306 Remotely . | . . . . . . . . Salvage Created 1430 | 114 272 46 20 124 . 235 619 Parts 106 | 9 27 2 5 8 . 25 30 Haulers Intercepted 4 | . 1 . . . . . 3 Recyclers Shooed 1 | . . . . . . . 1 Parts Field Recycled . | . . . . . . . . Retrieved Matter . | . . . . . . . . Parts Self-Destructed . | . . . . . . . . Prevented . | . . . . . . . . Parts Restored . | . . . . . . . . Kills | -11 -10 -10 -9 -9 -9 -8 -8 ------- Run | Yrd Mat Min Mat Min Exi Min Mat Combat Hostiles Destroyed 41 | . 10 1 . 7 . 12 11 Guns 14 | . 3 1 . 1 . 5 4 Cannons 1 | . . . . . . . 1 AOE 24 | . 7 . . 6 . 7 4 Classes Destroyed 10 | 2 5 . 1 . . . 2 Worker 3 | . 1 . . . . 2 . Tunneler 4 | 3 . . . . . 1 . Hauler 4 | . 1 . . . . . 3 Recycler 1 | 1 . . . . . . . Operator 2 | . 1 . 1 . . . . Watcher 2 | . . . 1 . . . 1 Swarmer 14 | . 3 . . 4 . 7 . Grunt 24 | . 7 1 . 3 . 5 8 Brawler 1 | . . . . . . . 1 Sentry 2 | . . . . . . . 2 Best Kill Streak 8 | 2 8 1 2 7 . 5 4 Combat Bots Only 7 | . 6 1 . 7 . 4 3 Max Kills in Single Turn 4 | 1 3 1 1 4 . 3 2 Gunslinging . | . . . . . . . . Exploded 3 | . 2 . . 3 . 2 2 Melee . | . . . . . . . . Uniques/NPCs Destroyed . | . . . . . . . . Combat | -11 -10 -10 -9 -9 -9 -8 -8 -------- Run | Yrd Mat Min Mat Min Exi Min Mat Hostile Shots Fired 111 | . 37 4 . 5 . 39 26 Missed 43 | . 10 . . 1 . 21 11 Hits 68 | . 27 4 . 4 . 18 15 Projectile 68 | . 27 4 . 4 . 18 15 Critical Strikes 3 | . . . . . . 3 . Damage Taken 1240 | . 343 43 12 97 . 362 383 Core 142 | . 78 10 . 19 . 35 . Absorbed by Shields 38 | . . . . . . . 38 Redirected to Shielding 41 | . . . . . . . 41 Core Remaining (%) 83 | 100 . 64 . . . 86 . Volleys Fired 111 | 17 29 3 2 12 . 21 27 Largest 2 | 2 2 2 2 2 . 2 2 Hottest 138 | 40 100 40 50 53 . 53 138 Shots Fired 182 | 34 44 6 4 17 . 38 39 Gun 122 | 34 30 6 2 5 . 21 24 Cannon 15 | . . . . . . . 15 Launcher 41 | . 10 . 2 12 . 17 . Special 4 | . 4 . . . . . . Kinetic 98 | 34 30 6 2 5 . 21 . Thermal 43 | . 4 . . . . . 39 Explosive 41 | . 10 . 2 12 . 17 . Electromagnetic . | . . . . . . . . Robot Hit Streak 8 | 8 8 4 3 8 . 8 3 Robot Miss Streak 5 | 5 2 1 . 1 . 2 3 Penetration Max . | . . . . . . . . Secondary Targets . | . . . . . . . . Shots Hit Robots 97 | 20 26 4 2 6 . 20 19 Core Hits 96 | 8 30 2 3 11 . 27 15 Critical Kills 3 | . 1 . . . . . 2 Critical Parts Destroyed . | . . . . . . . . Critical Strikes 4 | . 1 . . . . . 3 Burn 1 | . . . . . . . 1 Meltdown 2 | . . . . . . . 2 Destroy 1 | . 1 . . . . . . Melee Attacks . | . . . . . . . . Impact . | . . . . . . . . Slashing . | . . . . . . . . Piercing . | . . . . . . . . Sneak Attacks . | . . . . . . . . Combat Hostiles . | . . . . . . . . Follow-up Attacks . | . . . . . . . . Damage Inflicted 4219 | 173 913 47 76 411 . 1032 1567 Guns 1014 | 173 277 43 11 40 . 199 271 Cannons 586 | . . . . . . . 586 Explosions 2590 | . 630 . 65 371 . 831 693 Melee . | . . . . . . . . Ramming 29 | . 6 4 . . . 2 17 Kinetic 743 | 173 277 43 11 40 . 199 . Thermal 1452 | . . . . . . . 1452 Explosive 1995 | . 630 . 65 371 . 831 98 Electromagnetic . | . . . . . . . . Impact . | . . . . . . . . Slashing . | . . . . . . . . Piercing . | . . . . . . . . Highest Corruption . | . . . . . . . . Average Corruption . | . . . . . . . . Corruption Purged . | . . . . . . . . Corruption Blocked . | . . . . . . . . Overload Shots . | . . . . . . . . Overflow Damage 296 | . . . . . . 18 278 Projectiles 267 | . . . . . . . 267 Explosions 29 | . . . . . . 18 11 Melee . | . . . . . . . . Knockbacks . | . . . . . . . . Impact . | . . . . . . . . Kinetic . | . . . . . . . . Secondary . | . . . . . . . . Self-Inflicted Damage 388 | . 49 . 13 39 . 94 193 Shots 13 | . 2 . 1 2 . 4 4 Rammed 3 | . 2 1 . . . . . Targets Rammed 6 | . 2 1 . . . 1 2 Kicked 3 | . . . . . . 1 2 Crushed . | . . . . . . . . Highest Temperature 374 | . 40 12 . 3 . 39 374 Average Temperature 79 | . 14 7 . 3 . 14 140 Received Heat Transfer 510 | . 162 24 . 33 . 189 102 Effects 1 | . . . . . . . 1 Shutdowns 1 | . . . . . . . 1 Siege Activations . | . . . . . . . . Martial Activations . | . . . . . . . . Shielding Activations . | . . . . . . . . Robots Disrupted . | . . . . . . . . Combat Hostiles . | . . . . . . . . Robots Corrupted . | . . . . . . . . Combat Hostiles . | . . . . . . . . Parts Fried . | . . . . . . . . Impact Corruptions . | . . . . . . . . Robots Melted 2 | . . . . . . . 2 Combat Hostiles 2 | . . . . . . . 2 Parts Melted . | . . . . . . . . Heat Transferred 1632 | . . . . . . . 1632 Parts Sabotaged . | . . . . . . . . Parts Stolen . | . . . . . . . . Parts Stripped . | . . . . . . . . Power Chain Reactions . | . . . . . . . . Alert | -11 -10 -10 -9 -9 -9 -8 -8 ------- Run | Yrd Mat Min Mat Min Exi Min Mat Maximum Alert Level 1 | . 1 . . 1 . 1 1 Low Security (%) 92 | 100 97 100 100 97 . 83 84 Level 1 7 | . 2 . . 2 . 16 15 Level 2 . | . . . . . . . . Level 3 . | . . . . . . . . Level 4 . | . . . . . . . . Level 5 . | . . . . . . . . High Security . | . . . . . . . . Max Security . | . . . . . . . . Peak Influence 305 | 5 217 81 18 202 . 225 305 Initial 81 | . . 81 7 1 . . 59 Average 82 | 1 56 30 5 153 . 121 105 Influence Increases 1688 | 20 337 30 51 307 . 415 528 Destroy 0b10 Robot/C 820 | . 200 20 . 140 . 240 220 Destroy 0b10 Robot/NC 80 | 20 15 . 10 . . 15 20 Destroy Leader 172 | . 42 10 2 20 . 40 58 Successful Hack 80 | . 44 . 8 . . 8 20 Disable Machine 255 | . 15 . . 105 . 30 105 Destroy Structure 266 | . 21 . 16 42 . 82 105 Lose Combat Pursuer 15 | . . . 15 . . . . Influence Decreases 1401 | 20 128 219 66 164 148 262 394 Entered New Map 387 | . . 128 13 4 148 . 94 Time Decay 974 | 20 128 91 53 160 . 252 270 Lost Part 40 | . . . . . . 10 30 Squads Dispatched 8 | . 3 1 . . . 2 2 Investigation 4 | . 1 1 . . . 1 1 Extermination . | . . . . . . . . Reinforcement 4 | . 2 . . . . 1 1 Assault . | . . . . . . . . Garrison . | . . . . . . . . Intercept . | . . . . . . . . Searches Triggered . | . . . . . . . . Construction Impeded 1 | . . . . . . 1 . Haulers Reinforced . | . . . . . . . . Active Scanning Responses . | . . . . . . . . Cargo Convoy Interrupts . | . . . . . . . . Stealth | -11 -10 -10 -9 -9 -9 -8 -8 --------- Run | Yrd Mat Min Mat Min Exi Min Mat Distress Signals 1 | . . . 1 . . . . Communications Jammed . | . . . . . . . . Distress Signals . | . . . . . . . . Times Spotted 55 | . 21 1 2 3 . 12 16 Peak Tracking Total 5 | . 5 1 3 3 . 4 3 Tactical Retreats 1 | . . . 1 . . . . Traps | -11 -10 -10 -9 -9 -9 -8 -8 ------- Run | Yrd Mat Min Mat Min Exi Min Mat Traps Triggered 1 | . 1 . . . . . . Indirectly . | . . . . . . . . Trap Hack Attempts . | . . . . . . . . Triggered . | . . . . . . . . Disarmed . | . . . . . . . . Reprogrammed . | . . . . . . . . Reused . | . . . . . . . . Traps Extracted . | . . . . . . . . Installed . | . . . . . . . . Triggered . | . . . . . . . . Machines | -11 -10 -10 -9 -9 -9 -8 -8 ---------- Run | Yrd Mat Min Mat Min Exi Min Mat Machines Disabled 17 | . 1 . . 7 . 2 7 Max in Single Turn 2 | . 1 . . 2 . 1 1 Garrison Access 1 | . . . . . . . 1 Machines Repaired . | . . . . . . . . Machines Dismantled . | . . . . . . . . Machines Sabotaged . | . . . . . . . . Overloaded Fab Kills . | . . . . . . . . Hacking | -11 -10 -10 -9 -9 -9 -8 -8 --------- Run | Yrd Mat Min Mat Min Exi Min Mat Machines Accessed 16 | . 6 1 1 1 1 1 5 Terminals 14 | . 6 1 1 1 . 1 4 Fabricators . | . . . . . . . . Repair Stations . | . . . . . . . . Recycling Units . | . . . . . . . . Scanalyzers . | . . . . . . . . Garrison Access 1 | . . . . . . . 1 Total Hacks 49 | . 20 3 2 4 1 3 16 Successful 17 | . 7 . 2 1 1 1 5 Failed 32 | . 13 3 . 3 . 2 11 Catastrophic 8 | . 2 2 . 1 . 1 2 Database Lockouts . | . . . . . . . . Manual 37 | . 18 . 2 2 1 2 12 Terminals 46 | . 20 3 2 4 . 3 14 Fabricators . | . . . . . . . . Repair Stations . | . . . . . . . . Recycling Units . | . . . . . . . . Scanalyzers . | . . . . . . . . Garrison Access 2 | . . . . . . . 2 Terminal Hacks 16 | . 7 . 2 1 1 1 4 Robot Analysis 5 | . 4 . . . . . 1 Prototype ID Bank 3 | . 1 . 1 . . . 1 Branch Access Points 3 | . . . 1 . . 1 1 Terminal Index 1 | . 1 . . . . . . Dispatch Records 1 | . . . . 1 . . . Zone Layout 2 | . 1 . . . . . 1 Proto ID Catalog 1 | . . . . . 1 . . Fabricator Hacks . | . . . . . . . . Repair Station Hacks . | . . . . . . . . Recycling Unit Hacks . | . . . . . . . . Scanalyzer . | . . . . . . . . Garrison Access Hacks 1 | . . . . . . . 1 Seal Access 1 | . . . . . . . 1 Unauthorized Hacks . | . . . . . . . . Terminals . | . . . . . . . . Fabricators . | . . . . . . . . Repair Stations . | . . . . . . . . Recycling Units . | . . . . . . . . Scanalyzers . | . . . . . . . . Garrison Access . | . . . . . . . . Data Cores Recovered 1 | . . . 1 . . . . Used . | . . . . . . . . Hacking Detections 14 | . 6 1 1 1 . 1 4 Full Trace Events 4 | . . 1 . 1 . 1 1 Feedback Events . | . . . . . . . . Feedback Blocked . | . . . . . . . . Robot Schematics Acquired . | . . . . . . . . Robots Built . | . . . . . . . . Authchips . | . . . . . . . . Time . | . . . . . . . . Total Robot Build Rating . | . . . . . . . . Part Schematics Acquired . | . . . . . . . . Parts Built . | . . . . . . . . Authchips . | . . . . . . . . Time . | . . . . . . . . Total Part Build Rating . | . . . . . . . . Part Studies Acquired . | . . . . . . . . Parts Repaired . | . . . . . . . . Time . | . . . . . . . . Parts Recycled . | . . . . . . . . Recycled Matter . | . . . . . . . . Retrieved Matter . | . . . . . . . . Retrieved Components . | . . . . . . . . Parts Scanalyzed . | . . . . . . . . Part Schematics Acquired . | . . . . . . . . Parts Damaged . | . . . . . . . . Bothacking | -11 -10 -10 -9 -9 -9 -8 -8 ------------ Run | Yrd Mat Min Mat Min Exi Min Mat Used RIF Installer . | . . . . . . . . Robots Hacked . | . . . . . . . . Non-combat . | . . . . . . . . Combat . | . . . . . . . . Robot Hacks Applied . | . . . . . . . . Relay Couplers Released . | . . . . . . . . Fabnet Peak Effective % . | . . . . . . . . Robots Rewired . | . . . . . . . . Allies Hacked . | . . . . . . . . Hacks Repelled . | . . . . . . . . Allies | -11 -10 -10 -9 -9 -9 -8 -8 -------- Run | Yrd Mat Min Mat Min Exi Min Mat Total Allies . | . . . . . . . . Largest Group . | . . . . . . . . Highest-Rated Group . | . . . . . . . . Highest-Rated Ally . | . . . . . . . . Total Orders . | . . . . . . . . Ally Attacks . | . . . . . . . . Total Damage . | . . . . . . . . Kills . | . . . . . . . . Allies Corrupted . | . . . . . . . . Allies Melted . | . . . . . . . . Intel | -11 -10 -10 -9 -9 -9 -8 -8 ------- Run | Yrd Mat Min Mat Min Exi Min Mat Active Infowar (turns) 2687 | 32 653 254 186 329 455 567 211 Structural 71 | . . 71 . . . . . Seismic 2616 | 32 653 183 186 329 455 567 211 Robot Analysis Total 5 | . 4 . . . . . 1 Derelict Logs Recovered 1 | . . 1 . . . . . Drone Launches . | . . . . . . . . Drone Recoveries . | . . . . . . . . Exploration | -11 -10 -10 -9 -9 -9 -8 -8 ------------- Run | Yrd Mat Min Mat Min Exi Min Mat Turns Passed 3219 | 191 653 254 186 329 455 567 584 Spaces Moved 1805 | 111 349 148 109 188 284 332 284 Core 5 | 5 . . . . . . . Treads 1206 | . 278 148 109 188 284 199 . Legs 594 | 106 71 . . . . 133 284 Wheels . | . . . . . . . . Hover . | . . . . . . . . Flight . | . . . . . . . . Fastest Speed 50 | 50 120 160 160 160 160 120 120 Average Speed 152 | 116 151 160 160 160 160 146 157 Slowest Speed 240 | 120 160 160 160 160 160 240 190 Overloaded Moves . | . . . . . . . . Propulsion Burnouts . | . . . . . . . . Robots Hopped . | . . . . . . . . Potential Cave-ins . | . . . . . . . . Cave-ins Triggered . | . . . . . . . . Exploration Rate (%) 37 | 7 56 37 12 29 54 83 23 Regions Visited 7 Branch Regions 4 Pre-discovered Areas . | . . . . . . . . Known Exits Taken 1 | . . . 1 . . . . Unknown Exits Taken 6 | 1 1 1 . 1 1 1 . Scrap Searched 3 | . . 1 . 1 . 1 . Spaces Dug 4 | . 4 . . . . . . Terrain Destroyed 347 | . 20 . 16 53 . 101 157 Melee . | . . . . . . . . Projectile 10 | . 4 . . . . . 6 AOE 337 | . 16 . 16 53 . 101 151 Terrain Rammed . | . . . . . . . . Walls Destroyed . | . . . . . . . . Machines Disabled . | . . . . . . . . Actions | -11 -10 -10 -9 -9 -9 -8 -8 --------- Run | Yrd Mat Min Mat Min Exi Min Mat Total 2046 | 143 415 157 118 201 286 374 352 Wait 37 | . 17 . . . . 14 6 Move 1798 | 110 348 147 108 187 283 331 284 Hop . | . . . . . . . . Pick Up 28 | 9 6 1 4 1 1 1 5 Fast Attach 13 | 4 . . . . . 2 7 Attach 8 | 3 . . 2 . . . 3 Detach . | . . . . . . . . Swap 25 | . 12 5 1 . . 2 5 Drop 20 | . 1 . 1 1 2 2 13 Fire 111 | 17 29 3 2 12 . 21 27 Melee . | . . . . . . . . Ram . | . . . . . . . . Kick 3 | . . . . . . 1 2 Crush 3 | . 2 1 . . . . . Escape Stasis . | . . . . . . . . Rewire . | . . . . . . . . Trap . | . . . . . . . . Miscellaneous . | . . . . . . . . Route ------- -11/Scrapyard -10/Materials (discovered 2 exits: *Min x2) -10/Mines -9/Materials -9/Mines (discovered 2 exits: *Exi / [*Zio]) -9/Exiles -8/Mines (discovered 2 exits: *Mat x2) -8/Materials (discovered 3 exits: [*Fac] / Sto x2) History --------- Turn | Location | Event 10 | -11/Scrapyard | Discovered new exit (range 16) 192 | -11/Scrapyard | Entered Materials 326 | -10/Materials | Build established: Mutant 676 | -10/Materials | Discovered new exit (range 9) 767 | -10/Materials | Discovered new exit (range 15) 845 | -10/Materials | Entered Mines 852 | -10/Mines | Received a Rocket Launcher from a helpful Derelict 937 | -10/Mines | Assembled infested the area 942 | -10/Mines | Assisted by a Guerilla fighting off Assembled 1005 | -10/Mines | Discovered new exit (range 8) 1021 | -10/Mines | Learned 2 Materials zone layouts 1099 | -10/Mines | Entered Materials 1099 | -9/Materials | Evolved 2 slots: Propulsion x2 1166 | -9/Materials | Discovered new exit (range 6) 1204 | -9/Materials | Identified exit to Mines 1285 | -9/Materials | Entered Mines 1318 | -9/Mines | Destroyed 7 combat bots 1352 | -9/Mines | Deemed a non-threat by the Exiles lab entrance 1354 | -9/Mines | Discovered new exit (range 5) 1374 | -9/Mines | A Derelict revealed a hidden shortcut to a safe place 1614 | -9/Mines | Entered Exiles 1653 | -9/Exiles | Met 8R-AWN 1682 | -9/Exiles | Met EX-HEX 1742 | -9/Exiles | Met EX-BIN 1762 | -9/Exiles | Aligned with FarCom system 1763 | -9/Exiles | Given EX-Vault access code 1803 | -9/Exiles | Opened EX-Vault 1830 | -9/Exiles | Found YOLO Cannon 1861 | -9/Exiles | Warned to stay clear of 0b10 Research branches 1908 | -9/Exiles | Met EX-DEC 2045 | -9/Exiles | Discovered new exit (range 15) 2069 | -9/Exiles | Left Exiles lab with YOLO Cannon 2069 | -9/Exiles | Entered Mines 2145 | -8/Mines | Discovered new exit (range 14) 2542 | -8/Mines | Discovered new exit (range 8) 2636 | -8/Mines | Entered Materials 2636 | -8/Materials | Evolved 2 slots: Utility x2 2994 | -8/Materials | Identified exit to Storage 3084 | -8/Materials | Discovered new exit (range 5) 3123 | -8/Materials | Build established: Scavenger-Mutant 3220 | -8/Materials | Self-destructed Last Messages --------------- 03166_ R-06 Scavenger collects Enh. Autogun. 03167_ R-06 Scavenger collects Transport Network Coupler. 03170_ R-06 Scavenger collects Prototype Energy Gun. 03171_ ALERT: Hostiles spotted, dispatching reinforcements to Terminal M005. 03184_ Destroyed Aluminum Leg. 03184_ Destroyed Lgt. Nuclear Core. 03184_ G-47 Trooper suffers critical hit (Meltdown). 03184_ Terminal disabled. 03188_ Destroyed Particle Gun. 03188_ G-47 Trooper destroyed. 03192_ Destroyed Aluminum Leg. 03192_ G-47 Trooper destroyed. 03197_ Acquired 3 matter. 03199_ Acquired 50 matter. 03211_ Material Processor disabled. 03213_ Lgt. Nuclear Core destroyed. Map ----- +----------------------------------------------------+ | ?????????????????????????????????????????????????? | | ?????????????????????????????????????????????????? | | ?????????????????????????????????????????????????? | | ?????????????????????????????????????????????????? | | ?????????????????????????????????????????????????? | | ???????????????????#########?????????????????????? | | ???????????????????# ?????????????????????? | | ???????????????????# ?????????????????????? | | ???????????????????# ?????????????????????? | | ???????????????????# ?????????????????????? | | ???????????????????# ?????????????????????? | | ???????????????????# ?????????????????????? | | ???????????????????# ?????????????????????? | | ???????????????????# ?????????????????????? | | ??################## ?????????? ??????????? | | ###"""""#""""#""";;####+######/######+#??????????? | | = !] ???????????? | | < = %* [% ????????????? | | [ " """ ""????????????? | | ##""" " "" """"" """????????????? | | # "" gg """"???????????? | | # ] "" """"?? ????????? | | # % " """ ##??????? | | # " % ?????? | | # " [ ?????? | | # w" * @ ?????? | | #!!! #"# ###;;; ;; !;;; ;;;########?????????? | | #!! ! # # # # # #####????????????????? | | #!!! # # # ## ########????????????????????? | | ########## # # #######???????????????????????????? | | ?????????### ###?????????????????????????s???????? | | ??????????## ##??????????????????????????????????? | | ???????????# #???????????????????????????????????? | | ???????????# #???????????????????????????????????? | | ???????????# #???????????????????????????????????? | | ???????????# ###########?????????????????????????? | | ???????????# ## #?????????????????????????? | | ???????????# ## T #?????????????????????????? | | ????????##?# ## #?????????????????????????? | | ???????## # %#= #?????????????????????????? | | ???????# # +! #?????????????????????????? | | ?????? !*= [#?????????????????????????? | | ?????## # "#?????????? ???????????? | | ??????###### "#?????????? #??????????? | | ???????????# # #?????????# #??????????? | | ????######## # # ????????# #??????????? | | ????# / # # #??????# #??????????? | | ????# T # ## #???#### #??????????? | | ????# = # # #??##! #??????????? | | ????# = # # #??#! ######+##### | +----------------------------------------------------+ Best States ------------- Heat Dissipation 45 Energy Generation 14 Energy Capacity 250 Matter Stores 300 Matter Capacity 300 Sight Range 16 Terrain Scan Density 10 Weapon Shielding 66 Evasion (%) 58 Armor Integrity Analysis 30 Recoil Reduction 2 Offensive Hacking 10 Item Schematics ----------------- None Robot Schematics ------------------ None Fabricated ------------ Nothing Repaired ---------- Nothing Studied --------- None Alien Tech Used ----------------- None Achievements -------------- None Challenges ------------ None Game ------ Seed TargetSwarmImmobilizer Manual? 0 Play Time 00:30:20 Cumulative 10.4 hours Start 2025.11.13 @ 16:45:51 End 2025.11.13 @ 17:13:08 Sessions 1 Manual Loads 0 Difficulty Rogue Special Mode None Game No. 26 Rogue 26 Adventurer 0 Explorer 0 Win Type - Total 0 Types 0/0/0/0/0/0/0/0/0/0 Lore% 19 Gallery% 13 Achievement% 13 Wizard Run 0 Options --------- Layout 1 ASCII 0 Keyboard 0 Movement Numpad Keybinds 0 Fullscreen 1 Font 24/Smallcaps Map View 50x35 Zoom Use 0% Tactical HUD 1 Map Filters NONE Filters NONE Steam 1 RUN: 6510a5da-90bb-4563-a340-aae5dac492a5